bitfinex-derivatives/quotes_BTCF0:USTF0_20241214
["timestamp","ask_amount","ask_price","bid_price","bid_amount"]
[1734150331472,0.16687055,101960.0,101950.0,0.59809666]
[1734150331688,0.16687055,101960.0,101950.0,0.549038]
[1734150332576,0.21590455,101960.0,101950.0,0.549038]
[1734150332781,0.21590455,101960.0,101950.0,0.549538]
[1734150333678,0.21590455,101960.0,101950.0,0.549038]
[1734150334385,0.24022297,101960.0,101950.0,0.549038]
[1734150334774,0.24022297,101960.0,101950.0,0.549538]
[1734150335378,0.15281108,101960.0,101950.0,0.549538]
[1734150335980,0.18281108,101960.0,101950.0,0.549538]
[1734150338880,0.54361108,101960.0,101950.0,0.549538]
[1734150339077,0.79626306,101960.0,101950.0,0.5005]
[1734150339280,0.85507041,101960.0,101950.0,0.0005]
[1734150340477,0.70885117,101960.0,101950.0,0.0005]
[1734150342788,0.61173385,101960.0,101950.0,0.0005]
[1734150342984,0.70885117,101960.0,101950.0,0.0005]
[1734150343391,0.79615396,101960.0,101950.0,0.0005]
[1734150350289,0.7475953,101960.0,101950.0,0.0005]
[1734150350601,0.7475953,101960.0,101950.0,0.049539]
[1734150350794,0.7475953,101960.0,101950.0,0.049039]
[1734150351585,0.78143396,101960.0,101950.0,0.049039]
[1734150351893,0.79615396,101960.0,101940.0,0.531]
[1734150352090,0.45839766,101950.0,101940.0,0.580042]
[1734150352791,0.45839766,101950.0,101940.0,0.579542]
[1734150353190,0.47311766,101950.0,101940.0,0.579542]
[1734150353791,0.47311766,101950.0,101940.0,0.580042]
[1734150354095,0.11231766,101950.0,101940.0,0.580042]
[1734150354297,0.47311766,101950.0,101940.0,0.580042]
[1734150354697,0.47311766,101950.0,101940.0,0.579542]
[1734150355689,0.47311766,101950.0,101940.0,0.580042]
[1734150355897,0.56042045,101950.0,101940.0,0.580042]
[1734150356798,0.56042045,101950.0,101940.0,0.579542]
[1734150357794,0.56042045,101950.0,101940.0,0.580042]
[1734150359605,0.19962045,101950.0,101940.0,0.580042]
[1734150359804,0.56042045,101950.0,101940.0,0.580042]
[1734150359995,0.19962045,101950.0,101940.0,0.580042]
[1734150360200,0.56042045,101950.0,101940.0,0.580042]
[1734150360709,0.56042045,101950.0,101940.0,0.579542]
[1734150362309,0.67710188,101950.0,101940.0,0.579542]
[1734150362699,0.31630188,101950.0,101940.0,0.579542]
[1734150362905,0.56042045,101950.0,101940.0,0.579542]
[1734150363209,0.67710188,101950.0,101940.0,0.579542]
[1734150364309,0.56042045,101950.0,101940.0,0.579542]
[1734150364499,0.67710188,101950.0,101940.0,0.579542]
[1734150364703,0.31630188,101950.0,101940.0,0.579542]
[1734150364911,0.67710188,101950.0,101940.0,0.579542]
[1734150365113,0.56042045,101950.0,101940.0,0.579542]
[1734150365301,0.67710188,101950.0,101940.0,0.579542]
[1734150367704,0.31630188,101950.0,101940.0,0.579542]
[1734150368202,0.31630188,101950.0,101940.0,0.9317818]
[1734150369008,0.67710188,101950.0,101940.0,0.9317818]
[1734150369204,0.31663203,101950.0,101940.0,0.9317818]
[1734150369605,0.31662905,101950.0,101940.0,0.9317818]
[1734150369808,0.22899909,101950.0,101940.0,0.9317818]
[1734150370307,0.31663125,101950.0,101940.0,0.9317818]
[1734150371608,0.30191125,101950.0,101940.0,0.9317818]
[1734150372115,0.58979909,101950.0,101940.0,0.579542]
[1734150372311,0.57507909,101950.0,101940.0,0.579542]
[1734150373210,0.21427909,101950.0,101940.0,0.579542]
[1734150373409,0.58979909,101950.0,101940.0,0.579542]
[1734150373915,0.22899909,101950.0,101940.0,0.549042]
[1734150374116,0.58979909,101950.0,101940.0,0.549042]
[1734150374315,0.58979909,101950.0,101940.0,0.5]
[1734150374512,0.049044,101940.0,101930.0,0.9017878]
[1734150374718,0.74357742,101940.0,101930.0,0.8522398]
[1734150374919,0.83538976,101940.0,101930.0,0.5]
[1734150375815,0.83538976,101940.0,101930.0,0.5005]
[1734150376017,0.5920532,101940.0,101930.0,0.5005]
[1734150376209,0.5920532,101940.0,101930.0,0.59810766]
[1734150376210,0.5588532,101940.0,101930.0,0.59810766]
[1734150376514,0.70899443,101950.0,101930.0,1.54259024]
[1734150376712,0.70899443,101950.0,101940.0,0.049044]
[1734150377311,0.70899443,101950.0,101940.0,0.549044]
[1734150379709,0.34819443,101950.0,101940.0,0.549044]
[1734150379911,0.70899443,101950.0,101940.0,0.549044]
[1734150380311,0.70899443,101950.0,101940.0,0.5]
[1734150380512,0.81620676,101950.0,101930.0,0.9017868]
[1734150380719,0.65822673,101940.0,101930.0,0.9012868]
[1734150381014,0.72647727,101940.0,101930.0,0.549047]
[1734150381918,0.60966807,101940.0,101930.0,0.549047]
[1734150382315,0.60966807,101940.0,101930.0,0.9012868]
[1734150382515,0.77503593,101940.0,101930.0,0.5]
[1734150383020,0.77503593,101940.0,101920.0,0.54914862]
[1734150383021,0.049049,101930.0,101920.0,0.54914862]
[1734150383210,0.69336148,101930.0,101920.0,0.54914862]
[1734150383917,0.69336148,101930.0,101920.0,0.54964862]
[1734150383918,0.57664501,101930.0,101920.0,0.54964862]
[1734150384717,0.57664501,101930.0,101920.0,0.54914862]
[1734150385722,0.57664501,101930.0,101920.0,0.54964862]
[1734150386825,0.57664501,101930.0,101920.0,0.54914862]
[1734150387819,0.57664501,101930.0,101920.0,0.54964862]
[1734150388022,0.21584501,101930.0,101920.0,0.54964862]
[1734150388428,0.57664501,101930.0,101920.0,0.54964862]
[1734150388827,0.57664501,101930.0,101920.0,0.54914862]
[1734150389328,0.21584501,101930.0,101920.0,0.54914862]
[1734150389522,0.48910766,101930.0,101920.0,0.54914862]
[1734150389726,0.57664501,101930.0,101920.0,0.54914862]
[1734150390729,0.48910766,101930.0,101920.0,0.54914862]
[1734150392129,0.50382766,101930.0,101920.0,0.54914862]
[1734150392333,0.57664501,101930.0,101920.0,0.54914862]
[1734150392725,0.48910766,101930.0,101920.0,0.54914862]
[1734150393041,0.59136501,101930.0,101920.0,0.54914862]
[1734150393631,0.50382766,101930.0,101920.0,0.54914862]
[1734150396025,0.14302766,101930.0,101920.0,0.54914862]
[1734150396237,0.50382766,101930.0,101920.0,0.54914862]
[1734150397130,0.47312766,101930.0,101920.0,0.54914862]
[1734150397526,0.56066501,101930.0,101920.0,0.54914862]
[1734150400923,0.51210635,101930.0,101920.0,0.54914862]
[1734150401122,0.049049,101930.0,101920.0,0.54914862]
[1734150401323,0.049049,101930.0,101920.0,0.64584862]
[1734150401730,0.09760766,101930.0,101920.0,0.64584862]
[1734150402429,0.70419139,101940.0,101930.0,0.049049]
[1734150402628,0.50735492,101940.0,101930.0,0.049049]
[1734150402932,0.55591358,101940.0,101930.0,0.049049]
[1734150403139,0.54594101,101940.0,101930.0,0.549049]
[1734150403933,1.00093571,101950.0,101940.0,0.049044]
[1734150403934,1.03985348,101950.0,101940.0,0.049044]
[1734150404136,0.67905348,101950.0,101940.0,0.049044]
[1734150404434,0.56233701,101950.0,101940.0,0.049044]
[1734150405735,0.57206573,101950.0,101940.0,0.049044]
[1734150407033,0.93286573,101950.0,101940.0,0.049044]
[1734150408337,1.0495822,101950.0,101940.0,0.049044]
[1734150410640,1.00102354,101950.0,101940.0,0.049044]
[1734150410842,0.57206573,101950.0,101940.0,0.049044]
[1734150411337,0.93286573,101950.0,101940.0,0.049044]
[1734150411732,0.91814573,101950.0,101940.0,0.049044]
[1734150412433,1.0348622,101950.0,101940.0,0.049044]
[1734150413036,0.57206573,101950.0,101940.0,0.049044]
[1734150413834,0.6887822,101950.0,101940.0,0.049044]
[1734150414133,0.57206573,101950.0,101940.0,0.049044]
[1734150414638,1.0495822,101950.0,101940.0,0.049044]
[1734150418135,0.93286573,101950.0,101940.0,0.049044]
[1734150418436,1.0495822,101950.0,101940.0,0.049044]
[1734150418636,0.93286573,101950.0,101940.0,0.049044]
[1734150419037,1.0495822,101950.0,101940.0,0.049044]
[1734150419542,0.93286573,101950.0,101940.0,0.049044]
[1734150419731,1.0495822,101950.0,101940.0,0.049044]
[1734150428241,0.6871022,101950.0,101940.0,0.049044]
[1734150428750,0.59956485,101950.0,101940.0,0.049044]
[1734150429246,0.68716754,101950.0,101940.0,0.049044]
[1734150429843,0.68719197,101950.0,101940.0,0.049044]
[1734150430338,0.68719187,101950.0,101940.0,0.049044]
[1734150430538,0.74578409,101950.0,101940.0,0.049044]
[1734150431540,0.73106409,101950.0,101940.0,0.049044]
[1734150432542,0.61434762,101950.0,101940.0,0.049044]
[1734150432943,0.26826762,101950.0,101940.0,0.049044]
[1734150433243,0.62906762,101950.0,101940.0,0.049044]
[1734150434851,0.80453071,101950.0,101940.0,0.049044]
[1734150435953,0.62906762,101950.0,101940.0,0.049044]
[1734150436454,0.80453071,101950.0,101940.0,0.049044]
[1734150436846,0.62906762,101950.0,101940.0,0.049044]
[1734150437650,0.80453071,101950.0,101940.0,0.049044]
[1734150438050,0.62906762,101950.0,101940.0,0.049044]
[1734150438856,0.80453071,101950.0,101940.0,0.049044]
[1734150440848,0.65831147,101950.0,101940.0,0.049044]
[1734150441655,0.80441611,101950.0,101940.0,0.049044]
[1734150442153,0.049044,101940.0,101930.0,0.549048]
[1734150442357,0.86364678,101940.0,101930.0,0.549048]
[1734150442562,0.71754214,101940.0,101930.0,0.549048]
[1734150442752,0.86364678,101940.0,101930.0,0.549048]
[1734150443457,0.86364678,101940.0,101930.0,0.8431311]
[1734150444253,0.86364678,101940.0,101930.0,0.549048]
[1734150447459,0.71754214,101940.0,101930.0,0.549048]
[1734150448662,0.80515172,101940.0,101930.0,0.549048]
[1734150448963,0.80515236,101940.0,101930.0,0.549048]
[1734150449352,0.71754214,101940.0,101930.0,0.549048]
[1734150449555,0.7661008,101940.0,101920.0,1.08608485]
[1734150449755,0.54601231,101930.0,101920.0,1.14630172]
[1734150449958,0.54601231,101930.0,101920.0,0.79406192]
[1734150450155,0.66289313,101930.0,101920.0,0.79406192]
[1734150450360,0.57528748,101930.0,101920.0,0.79406192]
[1734150450559,0.66286515,101930.0,101920.0,0.50009662]
[1734150450868,0.66286515,101930.0,101920.0,0.79406192]
[1734150451559,0.66286515,101930.0,101920.0,0.50009662]
[1734150452372,0.67758515,101930.0,101920.0,0.50009662]
[1734150453655,0.72614381,101930.0,101920.0,9.662e-05]
[1734150453859,0.78467078,101930.0,101920.0,9.662e-05]
[1734150454662,0.63856614,101930.0,101920.0,9.662e-05]
[1734150454859,0.78467078,101930.0,101920.0,9.662e-05]
[1734150456568,0.79464569,101930.0,101920.0,9.662e-05]
[1734150456768,0.97776487,101930.0,101920.0,9.662e-05]
[1734150456970,1.15322796,101930.0,101920.0,9.662e-05]
[1734150457366,0.85322796,101930.0,101920.0,9.662e-05]
[1734150458465,0.75611064,101930.0,101920.0,9.662e-05]
[1734150458765,0.79431786,101930.0,101920.0,9.662e-05]
[1734150460072,0.97776487,101930.0,101910.0,0.0005]
[1734150460272,1.07982436,101920.0,101910.0,0.0005]
[1734150461270,1.07990516,101920.0,101910.0,0.0005]
[1734150461467,1.16727473,101920.0,101910.0,0.0005]
[1734150463970,0.049056,101910.0,101900.0,0.049061]
[1734150464162,0.45841466,101910.0,101900.0,0.049061]
[1734150464764,0.45841466,101910.0,101890.0,1.1547653]
[1734150464971,0.09761966,101900.0,101890.0,1.2043293]
[1734150465864,0.09761966,101900.0,101890.0,1.2038293]
[1734150466878,0.09761966,101900.0,101890.0,1.2043293]
[1734150467167,0.50707895,101900.0,101890.0,0.0005]
[1734150467472,0.45852029,101900.0,101890.0,0.049566]
[1734150467865,0.45852029,101900.0,101890.0,0.049066]
[1734150468064,0.45852029,101900.0,101890.0,0.549066]
[1734150469174,0.10766933,101900.0,101890.0,0.549066]
[1734150470175,0.15622799,101900.0,101890.0,0.5]
[1734150471882,0.17098799,101900.0,101890.0,0.5]
[1734150472288,0.15622799,101900.0,101890.0,0.5]
[1734150472693,0.17098799,101900.0,101890.0,0.5]
[1734150473287,0.53178799,101900.0,101890.0,0.5]
[1734150473487,0.56358799,101900.0,101890.0,0.5]
[1734150473689,0.46647067,101900.0,101890.0,0.5]
[1734150473888,0.56358799,101900.0,101890.0,0.5]
[1734150474093,0.51502933,101900.0,101890.0,0.5]
[1734150474294,0.46647067,101900.0,101890.0,0.5]
[1734150474490,0.51502933,101900.0,101890.0,0.5]
[1734150474691,0.56358799,101900.0,101890.0,0.5]
[1734150476197,0.20278799,101900.0,101890.0,0.5]
[1734150476398,0.56358799,101900.0,101890.0,0.5]
[1734150477595,0.46647067,101900.0,101890.0,0.5]
[1734150477794,0.56358799,101900.0,101890.0,0.5]
[1734150479489,0.65095756,101900.0,101880.0,0.8244653]
[1734150479693,0.45842466,101890.0,101880.0,0.5305]
[1734150479893,0.54579423,101890.0,101880.0,0.5305]
[1734150480095,0.45842466,101890.0,101880.0,0.5305]
[1734150480402,0.54579423,101890.0,101880.0,0.5305]
[1734150482707,0.54579423,101890.0,101880.0,0.5]
[1734150486997,0.18499423,101890.0,101880.0,0.5]
[1734150487197,0.54579423,101890.0,101880.0,0.5]
[1734150487803,0.71088793,101890.0,101870.0,0.8430373]
[1734150488002,0.62755789,101880.0,101870.0,0.549072]
[1734150488410,0.54018832,101880.0,101870.0,0.549072]
[1734150490310,0.49162966,101880.0,101870.0,0.549072]
[1734150490606,0.45842966,101880.0,101870.0,0.549072]
[1734150491003,0.50698832,101880.0,101870.0,0.549072]
[1734150491806,0.52183387,101880.0,101870.0,0.5]
[1734150492105,0.049076,101870.0,101860.0,0.8757453]
[1734150492411,0.09763466,101870.0,101860.0,0.8757453]
[1734150493296,0.049076,101870.0,101860.0,0.8757453]
[1734150493499,0.09763466,101870.0,101860.0,0.8757453]
[1734150495005,0.09763466,101870.0,101860.0,0.54908]
[1734150495006,0.14529466,101870.0,101860.0,0.54908]
[1734150497413,0.50609466,101870.0,101860.0,0.54908]
[1734150498104,0.04908,101860.0,101850.0,1.07801953]
[1734150498407,0.04908,101860.0,101850.0,0.73497023]
[1734150498408,0.50699732,101860.0,101850.0,0.73497023]
[1734150498609,0.50699732,101860.0,101850.0,0.50012619]
[1734150498910,0.59436689,101860.0,101850.0,0.50012619]
[1734150499805,0.62526689,101860.0,101850.0,0.50012619]
[1734150500312,0.53789732,101860.0,101850.0,0.50012619]
[1734150501305,0.65776689,101860.0,101850.0,0.00012619]
[1734150502908,0.66775084,101860.0,101850.0,0.00012619]
[1734150503309,0.66775084,101860.0,101850.0,0.04921119]
[1734150503310,0.58038127,101860.0,101850.0,0.04921119]
[1734150504202,0.66775084,101860.0,101850.0,0.04921119]
[1734150508320,0.66775084,101860.0,101850.0,0.00012619]
[1734150508709,0.78428588,101860.0,101850.0,0.00012619]
[1734150509113,0.66775084,101860.0,101850.0,0.00012619]
[1734150509623,0.78428588,101860.0,101850.0,0.00012619]
[1734150511419,0.57063352,101860.0,101850.0,0.04921119]
[1734150511615,0.68251084,101860.0,101850.0,0.04921119]
[1734150516420,0.32171084,101860.0,101850.0,0.04921119]
[1734150516725,0.79904588,101860.0,101850.0,0.04921119]
[1734150517228,0.71167631,101860.0,101850.0,0.04921119]
[1734150517624,0.79897388,101860.0,101850.0,0.04921119]
[1734150519123,0.71167631,101860.0,101850.0,0.04921119]
[1734150520625,0.71167631,101860.0,101850.0,0.00012619]
[1734150520626,0.90641542,101860.0,101850.0,0.00012619]
[1734150520826,0.78988038,101860.0,101850.0,0.00012619]
[1734150521024,0.96534347,101860.0,101850.0,0.00012619]
[1734150523537,0.78988038,101860.0,101850.0,0.00012619]
[1734150523724,0.049092,101840.0,101830.0,0.81534004]
[1734150523929,0.95720524,101840.0,101830.0,0.580496]
[1734150524229,1.0736798,101840.0,101830.0,0.580496]
[1734150525025,1.0736798,101840.0,101830.0,0.580996]
[1734150525928,1.0736798,101840.0,101830.0,0.580496]
[1734150527033,1.0736798,101840.0,101830.0,0.580996]
[1734150527227,1.0736798,101840.0,101830.0,0.81584004]
[1734150527825,1.43460898,101840.0,101830.0,0.73534404]
[1734150528031,0.049097,101830.0,101820.0,0.78394604]
[1734150528228,0.54585086,101830.0,101820.0,0.78394604]
[1734150528424,0.66232542,101830.0,101820.0,0.78394604]
[1734150529128,0.54585086,101830.0,101820.0,0.78394604]
[1734150531031,0.54585086,101830.0,101820.0,0.73484404]
[1734150531336,0.66232542,101830.0,101820.0,0.5]
[1734150531834,0.67708542,101830.0,101820.0,0.5]
[1734150532337,0.66232542,101830.0,101820.0,0.5]
[1734150532532,1.02312542,101830.0,101820.0,0.5]
[1734150532739,1.03788542,101830.0,101820.0,0.5]
[1734150532937,1.03788542,101830.0,101820.0,0.5005]
[1734150533531,0.92141086,101830.0,101820.0,0.5005]
[1734150533733,1.03788542,101830.0,101820.0,0.5005]
[1734150533933,1.03788542,101830.0,101820.0,0.5]
[1734150534129,0.92141086,101830.0,101820.0,0.5]
[1734150534726,0.92141086,101830.0,101820.0,0.549102]
[1734150534727,1.04755113,101830.0,101820.0,0.549102]
[1734150534932,0.93107657,101830.0,101820.0,0.549602]
[1734150535931,0.93107657,101830.0,101820.0,0.549102]
[1734150536126,0.8728522,101830.0,101820.0,0.59766066]
[1734150536330,0.88972851,101840.0,101830.0,0.049098]
[1734150536533,0.85089197,101840.0,101830.0,0.38071313]
[1734150536829,0.85089197,101840.0,101830.0,0.88071313]
[1734150538440,0.86092573,101840.0,101830.0,0.88071313]
[1734150539737,0.84616573,101840.0,101830.0,0.88071313]
[1734150540036,0.79760707,101840.0,101830.0,0.92927179]
[1734150540237,0.36088031,101840.0,101830.0,1.52323709]
[1734150541041,0.36088031,101840.0,101830.0,1.22323709]
[1734150541535,0.19980286,101850.0,101840.0,0.049093]
[1734150541536,0.4629552,101850.0,101840.0,0.049093]
[1734150541745,0.53679833,101860.0,101840.0,0.74196219]
[1734150542044,0.44814696,101860.0,101850.0,0.89557291]
[1734150542236,0.44814696,101860.0,101850.0,0.84701425]
[1734150542237,0.59434728,101860.0,101850.0,0.84701425]
[1734150542632,0.54586035,101860.0,101850.0,0.84701425]
[1734150543038,0.54636035,101860.0,101850.0,0.84701425]
[1734150543934,0.49677735,101860.0,101850.0,0.84701425]
[1734150544135,0.36087173,101860.0,101850.0,0.89557291]
[1734150544845,0.40943039,101860.0,101850.0,0.84701425]
[1734150545145,0.40993039,101860.0,101850.0,0.84701425]
[1734150545346,0.50757205,101860.0,101850.0,0.73492625]
[1734150545644,0.049088,101850.0,101840.0,1.07798255]
[1734150545945,0.45844666,101850.0,101840.0,1.07798255]
[1734150546146,0.45844666,101850.0,101840.0,0.78401725]
[1734150549847,0.45844666,101850.0,101840.0,0.549091]
[1734150552142,0.47320666,101850.0,101840.0,0.549091]
[1734150552351,0.45844666,101850.0,101840.0,0.549091]
[1734150552640,0.47320666,101850.0,101840.0,0.549091]
[1734150553842,0.5139845,101850.0,101840.0,0.549091]
[1734150556659,0.56254316,101850.0,101830.0,1.07798755]
[1734150556942,0.56254316,101850.0,101830.0,0.78402225]
[1734150556943,0.56891032,101840.0,101830.0,0.78402225]
[1734150557141,0.56891032,101840.0,101830.0,0.549096]
[1734150559054,0.56891032,101840.0,101830.0,0.049096]
[1734150560754,0.93175032,101840.0,101830.0,0.049096]
[1734150564854,0.834633,101840.0,101830.0,0.049096]
[1734150565159,0.834633,101840.0,101830.0,0.28402225]
[1734150565160,0.93175032,101840.0,101830.0,0.28402225]
[1734150565655,0.93175032,101840.0,101830.0,0.049096]
[1734150566155,0.88319166,101840.0,101830.0,0.28402225]
[1734150566655,0.93175032,101840.0,101830.0,0.28402225]
[1734150567050,0.93175032,101840.0,101830.0,0.28452225]
[1734150567754,0.88319166,101840.0,101830.0,0.28452225]
[1734150570465,0.52239166,101840.0,101830.0,0.28452225]
[1734150570649,0.88319166,101840.0,101830.0,0.28202225]
[1734150571944,0.85199166,101840.0,101830.0,0.28152225]
[1734150572145,0.5671414,101850.0,101840.0,0.549093]
[1734150572451,0.4992255,101850.0,101840.0,0.78401925]
[1734150573057,0.5139855,101850.0,101840.0,0.78401925]
[1734150573364,0.63046006,101850.0,101840.0,0.78401925]
[1734150575171,0.99380006,101850.0,101840.0,0.78401925]
[1734150576158,0.99380006,101850.0,101840.0,0.73492625]
[1734150576356,0.049093,101840.0,101830.0,1.07848655]
[1734150576559,0.45845166,101840.0,101830.0,0.8435603]
[1734150576758,0.09765166,101840.0,101830.0,0.8435603]
[1734150576954,0.45845166,101840.0,101830.0,0.8435603]
[1734150577458,0.45845166,101840.0,101830.0,1.07882768]
[1734150577857,0.09765166,101840.0,101830.0,0.8435603]
[1734150578961,0.45845166,101840.0,101830.0,0.8430603]
[1734150579559,0.48925166,101840.0,101830.0,0.8430603]
[1734150579754,0.48925166,101840.0,101830.0,1.07837954]
[1734150580262,0.48925166,101840.0,101830.0,0.8430603]
[1734150582156,0.60572622,101840.0,101830.0,1.07844438]
[1734150582356,0.48925166,101840.0,101830.0,0.8430603]
[1734150582658,0.60572622,101840.0,101830.0,0.8430603]
[1734150583862,0.55716756,101840.0,101830.0,0.8430603]
[1734150584064,0.60572622,101840.0,101830.0,0.8430603]
[1734150584963,0.60572622,101840.0,101830.0,1.07849817]
[1734150586264,0.60572622,101840.0,101830.0,0.8430603]
[1734150586659,0.63782622,101840.0,101830.0,0.8430603]
[1734150587554,0.68638488,101840.0,101830.0,0.8430603]
[1734150588959,0.68638488,101840.0,101830.0,1.07855572]
[1734150589154,0.63782622,101840.0,101830.0,1.07855572]
[1734150589567,0.68638488,101840.0,101830.0,0.7939653]
[1734150589761,0.68638488,101840.0,101830.0,1.02946277]
[1734150589762,0.83248952,101840.0,101830.0,1.02946277]
[1734150590263,0.71601496,101840.0,101830.0,0.73549747]
[1734150591265,0.83266268,101840.0,101830.0,0.73549747]
[1734150592163,0.84742268,101840.0,101830.0,0.73549747]
[1734150592360,0.83266268,101840.0,101830.0,0.73549747]
[1734150592572,0.71601496,101840.0,101830.0,0.73549747]
[1734150593159,0.83265389,101840.0,101830.0,0.73549747]
[1734150593370,0.84741389,101840.0,101830.0,0.73549747]
[1734150593762,0.73077496,101840.0,101830.0,0.73549747]
[1734150593969,0.84741029,101840.0,101830.0,0.73549747]
[1734150594167,0.84740204,101840.0,101830.0,0.73549747]
[1734150596069,0.84740204,101840.0,101820.0,0.73599747]
[1734150596070,0.049097,101830.0,101820.0,0.73599747]
[1734150596265,0.80009813,101830.0,101820.0,0.0005]
[1734150596475,0.6349603,101830.0,101820.0,0.0005]
[1734150596968,0.6349603,101830.0,101810.0,1.07856877]
[1734150597165,0.6349603,101830.0,101810.0,1.12712743]
[1734150597166,0.409902,101820.0,101810.0,1.12712743]
[1734150597366,0.409902,101820.0,101810.0,1.18892743]
[1734150598163,0.409902,101820.0,101810.0,0.84640347]
[1734150598565,0.409902,101820.0,101810.0,1.14036877]
[1734150599366,0.409902,101820.0,101810.0,0.9048713]
[1734150599367,0.049102,101820.0,101810.0,0.9048713]
[1734150599566,0.409902,101820.0,101810.0,0.9048713]
[1734150600075,0.409902,101820.0,101810.0,0.95342996]
[1734150600276,0.049102,101820.0,101810.0,0.95342996]
[1734150600573,0.049102,101820.0,101810.0,1.66646976]
[1734150600769,0.049102,101820.0,101810.0,1.31422996]
[1734150601679,0.049102,101820.0,101810.0,1.62778558]
[1734150602180,0.41968238,101830.0,101820.0,0.049102]
[1734150602474,0.41968238,101830.0,101820.0,0.57819839]
[1734150602976,0.41968238,101830.0,101820.0,1.07869839]
[1734150603170,0.46824104,101830.0,101820.0,0.78475595]
[1734150604073,0.46824104,101830.0,101820.0,0.78425595]
[1734150604467,0.41968238,101830.0,101820.0,0.78425595]
[1734150604669,0.41968238,101830.0,101820.0,1.07819839]
[1734150604864,0.41968238,101830.0,101820.0,1.12675705]
[1734150605272,0.41968238,101830.0,101820.0,1.07819839]
[1734150612188,0.43444238,101830.0,101820.0,1.07819839]
[1734150612372,0.41968238,101830.0,101820.0,1.07819839]
[1734150612873,0.46824104,101830.0,101820.0,1.02909639]
[1734150613075,0.59957741,101830.0,101820.0,0.73515395]
[1734150616176,0.59957741,101830.0,101820.0,0.79394244]
[1734150616577,0.59957741,101830.0,101820.0,0.73539091]
[1734150616877,0.59957741,101830.0,101820.0,0.73538503]
[1734150617187,0.59957741,101830.0,101820.0,0.79394244]
[1734150617374,0.55101875,101830.0,101820.0,0.73541271]
[1734150617582,0.55101875,101830.0,101820.0,0.79394244]
[1734150618390,0.55101875,101830.0,101820.0,0.84304444]
[1734150618989,0.59957741,101830.0,101820.0,0.84304444]
[1734150622587,0.55101875,101830.0,101820.0,0.84304444]
[1734150623488,0.43444238,101830.0,101820.0,1.19528424]
[1734150625685,0.48300104,101830.0,101820.0,1.19528424]
[1734150625986,0.48350104,101830.0,101820.0,1.19528424]
[1734150626384,0.60007741,101830.0,101820.0,0.84304444]
[1734150627186,0.60007741,101830.0,101820.0,1.19528424]
[1734150628083,0.55101875,101830.0,101820.0,1.19528424]
[1734150628694,0.59957741,101830.0,101820.0,1.19528424]
[1734150631597,0.58481741,101830.0,101820.0,1.19528424]
[1734150633394,0.59957741,101830.0,101820.0,1.19528424]
[1734150633599,0.23877741,101830.0,101820.0,1.19528424]
[1734150633892,0.19021875,101830.0,101820.0,0.9013418]
[1734150634092,0.07364238,101830.0,101820.0,1.15609]
[1734150634290,0.07364238,101830.0,101820.0,1.20464866]
[1734150637690,0.07364238,101830.0,101820.0,0.94990046]
[1734150639599,0.02454238,101830.0,101820.0,0.94990046]
[1734150639802,0.00978238,101830.0,101820.0,0.94990046]
[1734150640102,0.71910233,101840.0,101830.0,0.049098]
[1734150640285,0.71910233,101840.0,101830.0,0.57894866]
[1734150640691,0.65060264,101840.0,101830.0,1.12750732]
[1734150640897,0.65060264,101840.0,101830.0,0.89201814]
[1734150641089,0.66117602,101840.0,101830.0,0.89201814]
[1734150641399,0.66117602,101840.0,101830.0,1.1274657]
[1734150642002,0.66067602,101840.0,101830.0,1.1274657]
[1734150642504,0.70923468,101840.0,101830.0,1.07890704]
[1734150643097,0.70973468,101840.0,101830.0,1.07890704]
[1734150643297,0.70973468,101840.0,101830.0,0.84345948]
[1734150644094,0.70923468,101840.0,101830.0,0.84345948]
[1734150645005,0.70973468,101840.0,101830.0,0.84345948]
[1734150645197,0.34893468,101840.0,101830.0,0.84345948]
[1734150645406,0.23235831,101840.0,101830.0,0.84345948]
[1734150645707,0.70973468,101840.0,101830.0,0.84345948]
[1734150646203,0.70923468,101840.0,101830.0,0.84345948]
[1734150647202,0.70973468,101840.0,101830.0,0.84345948]
[1734150648204,0.70923468,101840.0,101830.0,0.84345948]
[1734150649096,0.70973468,101840.0,101830.0,0.84345948]
[1734150649497,0.66117602,101840.0,101830.0,0.84345948]
[1734150649699,0.70973468,101840.0,101830.0,0.84345948]
[1734150650698,0.66117602,101840.0,101830.0,0.84345948]
[1734150651101,0.70973468,101840.0,101830.0,0.84345948]
[1734150651400,0.37148365,101840.0,101830.0,0.89201814]
[1734150651601,0.37148365,101840.0,101830.0,1.24425794]
[1734150652801,0.37148365,101840.0,101830.0,0.89201814]
[1734150653203,0.00061027,101840.0,101830.0,1.85748344]
[1734150653403,0.00061027,101840.0,101830.0,1.62549295]
[1734150653598,0.00061027,101840.0,101830.0,1.57693429]
[1734150653801,0.45906193,101840.0,101830.0,0.84321763]
[1734150654112,0.41050327,101840.0,101830.0,0.84321763]
[1734150654308,0.41050327,101840.0,101830.0,0.89177629]
[1734150655611,0.04970327,101840.0,101830.0,0.89177629]
[1734150655805,0.04970327,101840.0,101830.0,1.24401609]
[1734150657408,0.04970327,101840.0,101830.0,0.89177629]
[1734150657804,0.04970327,101840.0,101830.0,0.84321763]
[1734150658405,0.41050327,101840.0,101830.0,0.84321763]
[1734150658712,0.52707964,101840.0,101830.0,0.84321763]
[1734150661714,0.52707964,101840.0,101830.0,0.89177629]
[1734150661922,0.49805769,101840.0,101830.0,0.89177629]
[1734150662422,0.25383406,101840.0,101830.0,0.89177629]
[1734150662623,0.13725769,101840.0,101830.0,0.89177629]
[1734150663824,0.13725769,101840.0,101830.0,1.24401609]
[1734150664620,0.13725769,101840.0,101830.0,0.89177629]
[1734150664819,0.25383406,101840.0,101830.0,0.89177629]
[1734150665019,0.13725769,101840.0,101830.0,0.84321763]
[1734150665726,0.25383406,101840.0,101830.0,0.84321763]
[1734150666024,0.20424106,101840.0,101830.0,0.84321763]
[1734150666223,0.00011027,101840.0,101830.0,1.94498864]
[1734150666527,0.00011027,101840.0,101830.0,1.57469018]
[1734150666828,0.00011027,101840.0,101830.0,1.98443438]
[1734150667526,0.00011027,101840.0,101830.0,1.62324884]
[1734150667832,0.00011027,101840.0,101830.0,1.98443438]
[1734150668127,0.00011027,101840.0,101830.0,2.03299304]
[1734150668317,0.00011027,101840.0,101830.0,2.18007552]
[1734150670027,0.00197334,101850.0,101830.0,2.18007552]
[1734150670219,0.00147334,101850.0,101840.0,0.53761032]
[1734150670423,0.00147334,101850.0,101840.0,1.14030014]
[1734150670919,0.00147334,101850.0,101840.0,1.64030014]
[1734150671119,0.00203349,101850.0,101840.0,1.64030014]
[1734150672225,0.00153349,101850.0,101840.0,1.64030014]
[1734150673119,0.00203349,101850.0,101840.0,1.64030014]
[1734150674018,6.015e-05,101850.0,101840.0,1.64030014]
[1734150674226,6.015e-05,101850.0,101840.0,1.27950014]
[1734150674425,6.015e-05,101850.0,101840.0,1.64030014]